Cogmind - Beta 16 @@@ ROGUE MODE // 2025.11.05 @ 19:42:22 Player: btrs Result: Destroyed by BD-MD1(R) with Subdweller Machine Gun Performance ------------- Evolutions (0) 0 Regions Visited (2) 400 Robots Destroyed (26) 130 Value Destroyed (646) 646 Prototype IDs (2) 40 Alien Tech Used (0) 0 Bonus (0) 0 TOTAL SCORE: 1216 Bonus ------- None Cogmind --------- Core Integrity 0/250 Matter 191/300 Energy 248/250 System Corruption 0% Temperature Cool (0) Movement Treading (400) Ox3 Location -10/Subcaves Parts ------- > --- POWER (1) -------- Ion Engine > --- PROPULSION (2) --- Light Treads Light Treads > --- UTILITY (2) ------ Cargo Storage Unit > --- WEAPON (2) ------- Medium Laser Light Cannon > --- INVENTORY (30) --- Light Ion Engine Light Ion Engine Light Treads Light Treads Light Treads Light Treads Light Treads Light Treads Light Treads Light Treads Light Treads Light Treads Light Treads Light Treads Wheel Flight Unit Heat Sink Heat Sink High-capacity Battery (250) Medium Matter Pod (100) Visual Processing Unit Sensor Array Signal Interpreter Core Shielding Grenade Launcher Datajack Mining Laser Peak State ------------ > --- POWER ------------ Ion Engine > --- PROPULSION ------- Light Treads Light Treads > --- UTILITY ---------- Cargo Storage Unit > --- WEAPON ----------- Particle Gun Beam Cannon > --- INVENTORY -------- Ion Engine Ion Engine Light Ion Engine Light Ion Engine Light Treads Light Treads Light Treads Light Treads Light Treads Light Treads Light Treads Aluminum Leg Aluminum Leg Wheel Compact Wheel Flight Unit Heat Sink Heat Sink Small Storage Unit High-capacity Storage Unit Medium Matter Pod Visual Processing Unit Terrain Scanner Propulsion Shielding Propulsion Shielding Medium Laser Light Assault Rifle Grenade Launcher Mining Laser [Rating: 11] Favorites ----------- Power Ion Engine Engine Ion Engine Propulsion Light Treads Treads Light Treads Utility Cargo Storage Unit Device Heat Sink Storage Cargo Storage Unit Weapon Beam Cannon Energy Gun Particle Gun Energy Cannon Beam Cannon Ballistic Gun Light Assault Rifle Ballistic Cannon Light Cannon Launcher Grenade Launcher Special Weapon Mining Laser Special Melee Weapon Datajack Build | -11 -10 -10 ------- Run | Yrd Mat Sub Slots Evolved . | . . . Power . | . . . Propulsion . | . . . Utility . | . . . Weapon . | . . . Parts Attached 22 | 6 13 3 Power 4 | 1 3 . Engine 4 | 1 3 . Core . | . . . Reactor . | . . . Propulsion 7 | 2 3 2 Treads 7 | 2 3 2 Leg . | . . . Wheel . | . . . Hover . | . . . Flight . | . . . Utility 3 | 1 2 . Device 1 | . 1 . Storage 2 | 1 1 . Processor . | . . . Hackware . | . . . Protection . | . . . Artifact . | . . . Weapon 8 | 2 5 1 Energy Gun 2 | 1 1 . Energy Cannon 1 | . 1 . Ballistic Gun 1 | 1 . . Ballistic Cannon 1 | . . 1 Launcher 1 | . 1 . Special Weapon 1 | . 1 . Impact Weapon . | . . . Slashing Weapon . | . . . Piercing Weapon . | . . . Special Melee Weapon 1 | . 1 . Unidentified Prototypes . | . . . Parts Lost 4 | . 1 3 Power 2 | . 1 1 Propulsion . | . . . Utility . | . . . Weapon 2 | . . 2 Highest Loss Streak 3 | . 1 3 To Critical Strikes . | . . . Average Backups 22 | . 22 29 Power 3 | . 3 2 Propulsion 9 | . 9 14 Utility 5 | . 5 8 Weapon 3 | . 3 3 Tool/Special . | . . . Unused Backups 28 | . 8 20 Power 1 | . . 1 Propulsion 16 | . 4 12 Utility 11 | . 4 7 Weapon . | . . . Tool/Special . | . . . Average Slot Usage (%) 84 | . 84 82 Engine 13 | . 13 13 Treads 28 | . 28 28 Storage 13 | . 13 14 Energy Gun 11 | . 12 3 Energy Cannon 9 | . 9 9 Ballistic Gun 2 | . 3 . Special Weapon 1 | . 1 8 Peak Build Rating 11 | 6 11 11 Average Rating 9 | 5 9 9 On Entrance 5 | . 6 10 Avg Prop Armor Cover (%) . | . . . Naked Turns . | . . . Heaviest Build 151 | 11 151 149 Greatest Support 40 | 40 40 40 Greatest Overweight (x) 3 | 3 3 3 Average Overweight (x) 2 | . 2 3 Largest Inventory Capacity 30 | 8 30 30 Average Capacity 29 | 7 29 30 Most Carried 30 | 1 30 30 Average Carried 22 | . 22 29 Final Capacity 30 | 8 30 30 Final Carried 30 | 1 30 27 Class Distribution -------------------- 97% | Hauler-Mutant Dominant Class ---------------- Hauler-Mutant | -10/Materials Hauler-Mutant | -10/Subcaves Resources | -11 -10 -10 ----------- Run | Yrd Mat Sub Matter Collected 549 | 223 326 . Remotely . | . . . Salvage Created 967 | . 967 . Parts 45 | . 45 . Haulers Intercepted 2 | . 2 . Recyclers Shooed 3 | . 3 . Parts Field Recycled . | . . . Retrieved Matter . | . . . Parts Self-Destructed 1 | . . 1 Prevented . | . . . Parts Restored . | . . . Kills | -11 -10 -10 ------- Run | Yrd Mat Sub Combat Hostiles Destroyed 17 | . 17 . Guns 11 | . 11 . Cannons 2 | . 2 . AOE 4 | . 4 . Classes Destroyed 7 | . 7 . Worker 1 | . 1 . Hauler 2 | . 2 . Recycler 3 | . 3 . Operator 1 | . 1 . Watcher 2 | . 2 . Swarmer 3 | . 3 . Grunt 14 | . 14 . Best Kill Streak 8 | . 8 . Combat Bots Only 5 | . 5 . Max Kills in Single Turn 4 | . 4 . Gunslinging . | . . . Exploded 2 | . 2 . Melee . | . . . Uniques/NPCs Destroyed . | . . . Combat | -11 -10 -10 -------- Run | Yrd Mat Sub Hostile Shots Fired 110 | . 76 34 Missed 24 | . 19 5 Hits 86 | . 57 29 Projectile 86 | . 57 29 Critical Strikes 2 | . 2 . Damage Taken 1382 | . 787 595 Core 256 | . 155 101 Absorbed by Shields . | . . . Regen/Repaired (Parts) 118 | . 118 . Core Remaining (%) 100 | 100 . . Volleys Fired 95 | . 77 18 Largest 2 | . 2 2 Hottest 125 | . 125 125 Shots Fired 166 | . 130 36 Gun 99 | . 81 18 Cannon 53 | . 35 18 Launcher 2 | . 2 . Special 12 | . 12 . Kinetic 30 | . 19 11 Thermal 134 | . 109 25 Explosive 2 | . 2 . Electromagnetic . | . . . Robot Hit Streak 18 | . 10 18 Robot Miss Streak 3 | . 3 2 Penetration Max . | . . . Secondary Targets . | . . . Shots Hit Robots 110 | . 81 29 Core Hits 42 | . 41 1 Critical Kills . | . . . Critical Parts Destroyed . | . . . Critical Strikes 2 | . 2 . Burn 2 | . 2 . Melee Attacks 3 | . 3 . Impact . | . . . Slashing . | . . . Piercing . | . . . Sneak Attacks 3 | . 3 . Combat Hostiles . | . . . Follow-up Attacks . | . . . Damage Inflicted 1872 | . 1787 85 Guns 848 | . 798 50 Cannons 368 | . 333 35 Explosions 584 | . 584 . Melee . | . . . Ramming . | . . . Kinetic 138 | . 103 35 Thermal 1150 | . 1100 50 Explosive 584 | . 584 . Electromagnetic . | . . . Impact . | . . . Slashing . | . . . Piercing . | . . . Highest Corruption . | . . . Average Corruption . | . . . Corruption Purged . | . . . Corruption Blocked . | . . . Overload Shots . | . . . Overflow Damage . | . . . Projectiles . | . . . Explosions . | . . . Melee . | . . . Knockbacks 1 | . . 1 Impact . | . . . Kinetic 1 | . . 1 Secondary . | . . . Self-Inflicted Damage 88 | . 88 . Shots 1 | . 1 . Rammed . | . . . Targets Rammed . | . . . Kicked . | . . . Crushed . | . . . Highest Temperature 352 | . 352 21 Average Temperature 97 | . 102 11 Received Heat Transfer 345 | . 345 . Effects 8 | . 8 . Shutdowns 2 | . 2 . Energy Bleed 2 | . 2 . Interference 4 | . 4 . Siege Activations . | . . . Martial Activations . | . . . Shielding Activations . | . . . Robots Disrupted . | . . . Combat Hostiles . | . . . Robots Corrupted . | . . . Combat Hostiles . | . . . Parts Fried . | . . . Impact Corruptions . | . . . Robots Melted . | . . . Combat Hostiles . | . . . Parts Melted 2 | . 2 . Heat Transferred 2962 | . 2814 148 Parts Sabotaged . | . . . Parts Stolen . | . . . Parts Stripped . | . . . Power Chain Reactions . | . . . Alert | -11 -10 -10 ------- Run | Yrd Mat Sub Maximum Alert Level . | . . . Low Security (%) 100 | 100 100 . Level 1 . | . . . Level 2 . | . . . Level 3 . | . . . Level 4 . | . . . Level 5 . | . . . High Security . | . . . Max Security . | . . . Peak Influence 199 | . 199 . Initial . | . . . Average 92 | . 93 . Influence Increases 637 | . 637 . Destroy 0b10 Robot/C 340 | . 340 . Destroy 0b10 Robot/NC 45 | . 45 . Destroy Leader 88 | . 88 . Successful Hack 20 | . 20 . Select Force Hacks 30 | . 30 . Disable Machine 45 | . 45 . Destroy Structure 54 | . 54 . Lose Combat Pursuer 15 | . 15 . Influence Decreases 637 | . 484 153 Entered New Map 74 | . . 74 Time Decay 544 | . 474 70 Lost Part 19 | . 10 9 Squads Dispatched 4 | . 4 . Investigation 2 | . 2 . Extermination . | . . . Reinforcement 2 | . 2 . Assault . | . . . Garrison . | . . . Intercept . | . . . Searches Triggered . | . . . Construction Impeded . | . . . Haulers Reinforced . | . . . Active Scanning Responses . | . . . Cargo Convoy Interrupts . | . . . Stealth | -11 -10 -10 --------- Run | Yrd Mat Sub Distress Signals 4 | . 4 . Communications Jammed . | . . . Distress Signals . | . . . Times Spotted 29 | . 28 1 Peak Tracking Total 6 | . 6 1 Tactical Retreats 1 | . 1 . Traps | -11 -10 -10 ------- Run | Yrd Mat Sub Traps Triggered 1 | . 1 . Indirectly . | . . . Trap Hack Attempts . | . . . Triggered . | . . . Disarmed . | . . . Reprogrammed . | . . . Reused . | . . . Traps Extracted . | . . . Installed . | . . . Triggered . | . . . Machines | -11 -10 -10 ---------- Run | Yrd Mat Sub Machines Disabled 4 | . 4 . Max in Single Turn 2 | . 2 . Machines Repaired . | . . . Machines Dismantled . | . . . Machines Sabotaged . | . . . Overloaded Fab Kills . | . . . Hacking | -11 -10 -10 --------- Run | Yrd Mat Sub Machines Accessed 6 | . 6 . Terminals 4 | . 4 . Fabricators . | . . . Repair Stations 1 | . 1 . Recycling Units 1 | . 1 . Scanalyzers . | . . . Garrison Access . | . . . Total Hacks 18 | . 18 . Successful 9 | . 9 . Failed 9 | . 9 . Catastrophic 2 | . 2 . Database Lockouts . | . . . Manual 4 | . 4 . Terminals 11 | . 11 . Fabricators . | . . . Repair Stations 5 | . 5 . Recycling Units 2 | . 2 . Scanalyzers . | . . . Garrison Access . | . . . Terminal Hacks 4 | . 4 . Prototype ID Bank 1 | . 1 . Locate Traps 1 | . 1 . Surveillance Status 1 | . 1 . Zone Layout 1 | . 1 . Fabricator Hacks . | . . . Repair Station Hacks 3 | . 3 . Scan Component 2 | . 2 . Repair 1 | . 1 . Recycling Unit Hacks . | . . . Scanalyzer . | . . . Garrison Access Hacks . | . . . Unauthorized Hacks 1 | . 1 . Terminals . | . . . Fabricators . | . . . Repair Stations . | . . . Recycling Units 1 | . 1 . Tunnel 1 | . 1 . Scanalyzers . | . . . Garrison Access . | . . . Data Cores Recovered . | . . . Used . | . . . Hacking Detections 4 | . 4 . Full Trace Events 3 | . 3 . Feedback Events . | . . . Feedback Blocked . | . . . Robot Schematics Acquired . | . . . Robots Built . | . . . Authchips . | . . . Time . | . . . Total Robot Build Rating . | . . . Part Schematics Acquired . | . . . Parts Built . | . . . Authchips . | . . . Time . | . . . Total Part Build Rating . | . . . Part Studies Acquired . | . . . Parts Repaired 1 | . 1 . Time 26 | . 26 . Parts Recycled . | . . . Recycled Matter . | . . . Retrieved Matter . | . . . Retrieved Components . | . . . Parts Scanalyzed . | . . . Part Schematics Acquired . | . . . Parts Damaged . | . . . Bothacking | -11 -10 -10 ------------ Run | Yrd Mat Sub Used RIF Installer . | . . . Robots Hacked 1 | . 1 . Non-combat 1 | . 1 . Combat . | . . . Robot Hacks Applied 1 | . 1 . no_distress 1 | . 1 . Relay Couplers Released . | . . . Fabnet Peak Effective % . | . . . Robots Rewired . | . . . Allies Hacked . | . . . Hacks Repelled . | . . . Allies | -11 -10 -10 -------- Run | Yrd Mat Sub Total Allies . | . . . Largest Group . | . . . Highest-Rated Group . | . . . Highest-Rated Ally . | . . . Total Orders . | . . . Ally Attacks . | . . . Total Damage . | . . . Kills . | . . . Allies Corrupted . | . . . Allies Melted . | . . . Intel | -11 -10 -10 ------- Run | Yrd Mat Sub Active Infowar (turns) . | . . . Robot Analysis Total . | . . . Derelict Logs Recovered . | . . . Drone Launches . | . . . Drone Recoveries . | . . . Exploration | -11 -10 -10 ------------- Run | Yrd Mat Sub Turns Passed 4491 | 73 4198 220 Spaces Moved 1043 | 43 965 35 Core 10 | 10 . . Treads 1033 | 33 965 35 Legs . | . . . Wheels . | . . . Hover . | . . . Flight . | . . . Fastest Speed 50 | 50 160 400 Average Speed 382 | 149 392 400 Slowest Speed 400 | 200 400 400 Overloaded Moves . | . . . Propulsion Burnouts . | . . . Robots Hopped . | . . . Potential Cave-ins . | . . . Cave-ins Triggered . | . . . Exploration Rate (%) 35 | 3 99 4 Regions Visited 2 Branch Regions 1 Pre-discovered Areas 1 | . 1 . Known Exits Taken . | . . . Unknown Exits Taken 2 | 1 1 . Scrap Searched . | . . . Spaces Dug . | . . . Terrain Destroyed 60 | . 60 . Melee . | . . . Projectile 1 | . 1 . AOE 59 | . 59 . Terrain Rammed . | . . . Walls Destroyed . | . . . Machines Disabled . | . . . Actions | -11 -10 -10 --------- Run | Yrd Mat Sub Total 1363 | 49 1235 79 Wait 138 | . 118 20 Move 1041 | 42 964 35 Hop . | . . . Pick Up 39 | 1 38 . Fast Attach 8 | 6 2 . Attach 4 | . 1 3 Detach 2 | . 2 . Swap 17 | . 14 3 Drop 16 | . 16 . Fire 95 | . 77 18 Melee 3 | . 3 . Ram . | . . . Kick . | . . . Crush . | . . . Escape Stasis . | . . . Rewire . | . . . Trap . | . . . Miscellaneous . | . . . Route ------- -11/Scrapyard -10/Materials (discovered 6 exits: [*Mat x3] / [*Min x2] / [*Sub]) -10/Subcaves History --------- Turn | Location | Event 17 | -11/Scrapyard | Discovered new exit (range 15) 74 | -11/Scrapyard | Entered Materials 294 | -10/Materials | Discovered new exit (range 13) 440 | -10/Materials | Build established: Hauler-Mutant 686 | -10/Materials | Discovered new exit (range 3) 993 | -10/Materials | Discovered new exit (range 13) 1688 | -10/Materials | Repaired Lgt. Treads 1742 | -10/Materials | Discovered new exit (range 7) 2854 | -10/Materials | Core integrity fell below 50% 3564 | -10/Materials | Discovered new exit (range 15) 4226 | -10/Materials | Discovered new exit (range 3) 4272 | -10/Materials | Entered Subcaves 4273 | -10/Subcaves | Approached by a straggling Scientist 4345 | -10/Subcaves | Shifting Twisted Machinery released Flamer 4346 | -10/Subcaves | Shifting Twisted Machinery released Sub. Power Source 4452 | -10/Subcaves | Core integrity fell below 20% 4480 | -10/Subcaves | Lost 3 parts (1p2w) 4492 | -10/Subcaves | Destroyed by BD-MD1(R) with Subdweller Machine Gun Last Messages --------------- 04273_ MC-YS1(c): "Thank the algorithms! I was beginning to lose hope I'd never make it past all the Subs lurking out here." 04276_ MC-YS1(c): "Hey, let me tag along and I can get us both out of this nasty situation. At least I think I can... The group I got separated from was talking about a shortcut back to the UFD." MC-YS1(c): "I think it's somewhere east of here" Flamer falls loose from the Twisted Machinery. Sub. Power Source falls loose from the Twisted Machinery. MC-YS1(c): "I think it's somewhere east of here" 04404_ BD-MD1(R): "SUB#$%&!" MC-YS1(c): "I think it's somewhere east of here" 04427_ Beam Cannon destroyed. 04429_ Ion Engine destroyed. 04449_ Particle Gun destroyed. MC-YS1(c): "I think it's somewhere east of here" 04485_ BD-MD1(R) knocked back. Map ----- +----------------------------------------------------+ | ??????????????????????????????????????????????? | | ??????????????????????????????????????????????? | | ??????????????????????????????????????????????? | | ???????????????##?????????????????????????????? | | ??????????????? #????????????????????????????? | | ???????????????? ????????????????????????????? | | ???????????????? ##??????????????????????????? | | ???????????????? ""?????????????????????????? | | ????????????????# "?????????????????????????? | | ????????????????# ?????????????????????????? | | ????????????????# "?????????????????????????? | | ????????????????# ?????" ??????????????????? | | ????????????????# ?????"##?????????????????? | | ????????????????# "#????# "??????????????????? | | ????????????????# "##??# #??????????????????? | | ?????????????????# ###"" ???????????????????? | | ????????????????## #"#???????##???????????? | | ???????????????## ##????"* ##### ??????? | | ???????????????# # ### """ ???????? | | ???????????????## ## ^ ^" ???????? | | ???????????????# # ^ | ?????? | | ???????????????## ## ## ### ?????? | | ???????????????# # c #?# #????????????????? | | ???????????????# ## #?? #????????????????? | | ???????????????# ##??? ???????????????? | | ???????????????### @ #???? ##??????????????? | | ?????????????????# ###????? ???????????????? | | ????????????????## ##???????##??????????????? | | ????????????????#% ##????????????????????????? | | ????????????????# R ####??????????????????????? | | ????????????????# #??????????????????????? | | ???????????????# #??????????????????????? | | ???????????????# ???????????????????? | | ???????????????#" ????????????????? | | ??????????????? #???????????????? | | ?????????????? #" ##???????????????? | | ????????????? "##$ #????????????????? | | ????????????##??## #### #???????????????? | | ?????????????????# ##???# #???????????????? | | ?????????????????# #????? ???????????????? | | ?????????????????## #?????? ????????????????? | | ???????????????????##??????? ????????????????? | | ??????????????????????????????????????????????? | | ??????????????????????????????????????????????? | | ??????????????????????????????????????????????? | | ??????????????????????????????????????????????? | | ??????????????????????????????????????????????? | | ??????????????????????????????????????????????? | | ??????????????????????????????????????????????? | | ??????????????????????????????????????????????? | +----------------------------------------------------+ Best States ------------- Heat Dissipation 35 Energy Generation 10 Energy Capacity 250 Matter Stores 300 Matter Capacity 300 Sight Range 16 Terrain Scan Density 10 Evasion (%) 40 Recoil Reduction 2 Item Schematics ----------------- None Robot Schematics ------------------ None Fabricated ------------ Nothing Repaired ---------- Lgt. Treads | 15% | -10/Materials Studied --------- None Alien Tech Used ----------------- None Achievements -------------- Junior Dev Not Today, Chutes Challenges ------------ None Game ------ Seed CooledForceRigger Manual? 0 Play Time 00:19:09 Cumulative 95.8 hours Start 2025.11.05 @ 19:23:43 End 2025.11.05 @ 19:42:22 Sessions 1 Manual Loads 0 Difficulty Rogue Special Mode None Game No. 58 Rogue 52 Adventurer 6 Explorer 0 Win Type - Total 3 Types 3/0/0/0/0/0/0/0/0/0 Lore% 35 Gallery% 44 Achievement% 29 Wizard Run 0 Options --------- Layout 2 ASCII 1 Keyboard 1 Movement Vi Keybinds 0 Fullscreen 1 Font 32/SmallcapsGlow Map View 50x44 Zoom Use 0% Tactical HUD 1 Map Filters NONE Filters NONE Steam 1 RUN: d20bf4ca-4d17-4119-a816-dddf0d8e407f